[Event "FIDE Women World Rapid 2024"]
[Site "New York"]
[Date "2024.12.27"]
[Round "7.15"]
[White "Charkhalashvili, Inga"]
[Black "Muzychuk, Mariya"]
[Result "1/2-1/2"]
[ECO "D47"]
[WhiteElo "2240"]
[BlackElo "2490"]
[Annotator "ChessBase"]
[PlyCount "126"]
[EventDate "2024.12.14"]
[EventType "swiss"]
[EventCountry "USA"]
[SourceTitle "playchess.com"]
[Source "ChessBase"]
[SourceQuality "1"]
[TimeControl "900+10"]

1. d4 {[%emt 0:00:01]} d5 {[%emt 0:00:01]} 2. c4 {[%emt 0:00:03]} c6 {[%emt 0:00:00]} 3. Nc3 {[%emt 0:00:02]} Nf6 {[%emt 0:00:01]} 4. Nf3 {[%emt 0:00:02]} e6 {[%emt 0:00:00]} 5. e3 {[%emt 0:00:06]} Nbd7 {[%emt 0:00:01]} 6. Bd3 {[%emt 0:00:04]} dxc4 {[%emt 0:00:01]} 7. Bxc4 {[%emt 0:00:01]} b5 {[%emt 0:00:01]} 8. Bb3 {[%emt 0:00:01]} Bb7 {[%emt 0:00:10]} 9. O-O {[%emt 0:00:04]} Be7 {[%emt 0:00:09]} 10. Re1 {[%emt 0:00:31]} b4 {[%emt 0:02:24]} 11. Na4 {[%emt 0:00:17]} c5 {[%emt 0:00:10]} 12. dxc5 {[%emt 0:00:13]} O-O {[%emt 0:00:21]} 13. Bd2 {[%emt 0:00:11]} a5 {[%emt 0:00:55]} 14. Rc1 {[%emt 0:00:01]} Rc8 {[%emt 0:00:01]} 15. a3 {[%emt 0:00:35]} Nxc5 {[%emt 0:00:37]} 16. Nxc5 {[%emt 0:00:02]} Bxc5 {[%emt 0:01:01]} 17. axb4 {[%emt 0:00:08]} Bxf3 {[%emt 0:01:02]} 18. gxf3 {[%emt 0:00:45]} axb4 {[%emt 0:00:23]} 19. Rc4 {[%emt 0:00:20]} Nd5 {[%emt 0:01:08]} 20. Qc2 {[%emt 0:00:43]} Qg5+ {[%emt 0:03:39]} 21. Rg4 {[%emt 0:01:49]} Qf6 {[%emt 0:00:12]} 22. Rc4 {[%emt 0:00:14]} Qg5+ {[%emt 0:00:54]} 23. Rg4 {[%emt 0:00:03]} Qe5 {[%emt 0:00:14]} 24. Re4 {[%emt 0:02:37]} Qh5 {[%emt 0:00:09]} 25. Qd1 {[%emt 0:01:31]} Bd6 {[%emt 0:00:52]} 26. h4 {[%emt 0:00:26]} Rfd8 {[%emt 0:02:23]} 27. Bxd5 {[%emt 0:03:52]} exd5 {[%emt 0:00:45]} 28. Rd4 {[%emt 0:01:08]} Rc4 {[%emt 0:00:07]} 29. Rxc4 {[%emt 0:01:49]} dxc4 {[%emt 0:00:01]} 30. Bxb4 {[%emt 0:00:37]} Bh2+ {[%emt 0:00:25]} 31. Kxh2 {[%emt 0:00:01]} Qxh4+ {[%emt 0:00:12]} 32. Kg2 {[%emt 0:00:04]} Qg5+ {[%emt 0:00:02]} 33. Kh2 {[%emt 0:00:43]} Rxd1 {[%emt 0:00:09]} 34. Rxd1 {[%emt 0:00:01]} h5 {[%emt 0:00:27]} 35. Bc3 {[%emt 0:00:05]} Qf5 {[%emt 0:00:13]} 36. Kg2 {[%emt 0:00:43]} f6 {[%emt 0:00:11]} 37. Rd4 {[%emt 0:00:26]} Qg5+ {[%emt 0:00:01]} 38. Kh2 {[%emt 0:00:05]} Qc5 {[%emt 0:00:04]} 39. Rh4 {[%emt 0:00:41]} Kh7 {[%emt 0:00:13]} 40. Bd4 {[%emt 0:00:14]} Qd5 {[%emt 0:00:06]} 41. Kg2 {[%emt 0:00:06]} Kh6 {[%emt 0:00:11]} 42. Re4 {[%emt 0:00:12]} Qg5+ {[%emt 0:00:12]} 43. Kh2 {[%emt 0:00:01]} Qf5 {[%emt 0:00:06]} 44. Rf4 {[%emt 0:00:05]} Qc2 {[%emt 0:00:18]} 45. Kg2 {[%emt 0:00:01]} Kg5 {[%emt 0:00:06]} 46. Bc3 {[%emt 0:00:04]} Qb3 {[%emt 0:00:35]} 47. Rd4 {[%emt 0:00:07]} Qb5 {[%emt 0:00:07]} 48. e4 {[%emt 0:00:02]} Kg6 {[%emt 0:00:15]} 49. Rd5 {[%emt 0:00:04]} Qc6 {[%emt 0:00:06]} 50. f4 {[%emt 0:00:43]} f5 {[%emt 0:00:36]} 51. f3 {[%emt 0:00:00]} fxe4 {[%emt 0:00:10]} 52. fxe4 {[%emt 0:00:02]} Kh6 {[%emt 0:00:08]} 53. Kf3 {[%emt 0:00:21]} Qc8 {[%emt 0:01:05]} 54. Rd6+ {[%emt 0:00:20]} Kh7 {[%emt 0:00:04]} 55. f5 {[%emt 0:00:01]} Qc7 {[%emt 0:00:12]} 56. Rg6 {[%emt 0:00:05]} Qh2 {[%emt 0:00:07]} 57. Rxg7+ {[%emt 0:00:02]} Kh6 {[%emt 0:00:01]} 58. Rg6+ {[%emt 0:00:31]} Kh7 {[%emt 0:00:01]} 59. Rg7+ {[%emt 0:00:19]} Kh6 {[%emt 0:00:00]} 60. f6 {[%emt 0:00:21]} Qh3+ {[%emt 0:00:23]} 61. Kf2 {[%emt 0:00:05]} Qh2+ {[%emt 0:00:14]} 62. Kf3 {[%emt 0:00:01]} Qh3+ {[%emt 0:00:14]} 63. Kf2 {[%emt 0:00:01]} Qh2+ {[%emt 0:00:06]} 1/2-1/2

[Event "FIDE Women World Rapid 2024"]
[Site "New York"]
[Date "2024.12.27"]
[Round "7.15"]
[White "Serikbay, Assel"]
[Black "Sahithi Varshini M"]
[Result "1/2-1/2"]
[ECO "E11"]
[WhiteElo "2236"]
[BlackElo "2309"]
[Annotator "ChessBase"]
[PlyCount "128"]
[EventDate "2024.12.14"]
[EventType "swiss"]
[EventCountry "USA"]
[SourceTitle "playchess.com"]
[Source "ChessBase"]
[SourceQuality "1"]
[TimeControl "900+10"]

1. d4 {[%emt 0:00:02]} Nf6 {[%emt 0:00:02]} 2. c4 {[%emt 0:00:02]} e6 {[%emt 0:00:02]} 3. Nf3 {[%emt 0:00:02]} Bb4+ {[%emt 0:00:02]} 4. Bd2 {[%emt 0:00:01]} Qe7 {[%emt 0:00:02]} 5. Nc3 {[%emt 0:00:09]} b6 {[%emt 0:00:27]} 6. e3 {[%emt 0:00:13]} Bb7 {[%emt 0:00:01]} 7. Bd3 {[%emt 0:00:01]} O-O {[%emt 0:00:31]} 8. Qc2 {[%emt 0:00:49]} c5 {[%emt 0:02:28]} 9. a3 {[%emt 0:00:31]} Bxc3 {[%emt 0:00:34]} 10. Bxc3 {[%emt 0:00:01]} cxd4 {[%emt 0:01:14]} 11. exd4 {[%emt 0:02:26]} Bxf3 {[%emt 0:01:41]} 12. gxf3 {[%emt 0:00:02]} d6 {[%emt 0:00:01]} 13. O-O-O {[%emt 0:01:04]} Nbd7 {[%emt 0:00:39]} 14. f4 {[%emt 0:00:18]} Rfc8 {[%emt 0:00:36]} 15. Kb1 {[%emt 0:00:46]} d5 {[%emt 0:01:46]} 16. Qe2 {[%emt 0:00:39]} Qd6 {[%emt 0:01:17]} 17. f5 {[%emt 0:01:56]} dxc4 {[%emt 0:00:54]} 18. Bxc4 {[%emt 0:00:07]} exf5 {[%emt 0:00:56]} 19. Bb4 {[%emt 0:03:32]} Qf4 {[%emt 0:00:47]} 20. Ba6 {[%emt 0:01:24]} Re8 {[%emt 0:00:12]} 21. Qb5 {[%emt 0:00:01]} Rad8 {[%emt 0:01:08]} 22. Rhe1 {[%emt 0:01:09]} Ne4 {[%emt 0:00:57]} 23. Re2 {[%emt 0:00:42]} Nb8 {[%emt 0:00:39]} 24. Bb7 {[%emt 0:00:28]} a5 {[%emt 0:01:00]} 25. Be1 {[%emt 0:00:02]} g6 {[%emt 0:00:55]} 26. Qxb6 {[%emt 0:00:13]} Rd6 {[%emt 0:00:20]} 27. Qb5 {[%emt 0:00:18]} Rde6 {[%emt 0:00:09]} 28. Bxe4 {[%emt 0:01:10]} fxe4 {[%emt 0:00:07]} 29. Bxa5 {[%emt 0:00:13]} Rc8 {[%emt 0:00:10]} 30. d5 {[%emt 0:00:09]} Qf5 {[%emt 0:00:12]} 31. Ka2 {[%emt 0:00:31]} Rd6 {[%emt 0:00:07]} 32. Bc7 {[%emt 0:00:26]} Rxc7 {[%emt 0:00:19]} 33. Qxb8+ {[%emt 0:00:01]} Qc8 {[%emt 0:00:06]} 34. Qxc8+ {[%emt 0:00:01]} Rxc8 {[%emt 0:00:01]} 35. Rxe4 {[%emt 0:00:01]} Rc2 {[%emt 0:00:02]} 36. Rf4 {[%emt 0:01:16]} f5 {[%emt 0:00:01]} 37. Kb1 {[%emt 0:00:11]} Re2 {[%emt 0:00:03]} 38. h4 {[%emt 0:00:05]} Kf7 {[%emt 0:00:06]} 39. f3 {[%emt 0:00:04]} Rf2 {[%emt 0:00:05]} 40. b4 {[%emt 0:00:07]} Kf6 {[%emt 0:00:07]} 41. Rd3 {[%emt 0:00:20]} h6 {[%emt 0:00:29]} 42. a4 {[%emt 0:00:13]} g5 {[%emt 0:00:21]} 43. hxg5+ {[%emt 0:00:01]} Kxg5 {[%emt 0:00:02]} 44. Rc4 {[%emt 0:00:04]} h5 {[%emt 0:00:07]} 45. Rc6 {[%emt 0:00:06]} Rd8 {[%emt 0:00:05]} 46. d6 {[%emt 0:00:09]} h4 {[%emt 0:00:08]} 47. Rc7 {[%emt 0:00:37]} h3 {[%emt 0:00:04]} 48. f4+ {[%emt 0:00:04]} Rxf4 {[%emt 0:00:10]} 49. Rxh3 {[%emt 0:00:04]} Rxb4+ {[%emt 0:00:01]} 50. Kc2 {[%emt 0:00:02]} Rxd6 {[%emt 0:00:19]} 51. Rg7+ {[%emt 0:00:09]} Kf6 {[%emt 0:00:07]} 52. Rgg3 {[%emt 0:00:28]} Rxa4 {[%emt 0:00:19]} 53. Rh6+ {[%emt 0:00:02]} Ke5 {[%emt 0:00:02]} 54. Rxd6 {[%emt 0:00:12]} Kxd6 {[%emt 0:00:01]} 55. Kd2 {[%emt 0:00:01]} Re4 {[%emt 0:00:03]} 56. Re3 {[%emt 0:00:04]} Ke5 {[%emt 0:00:47]} 57. Kd3 {[%emt 0:00:06]} Kf4 {[%emt 0:00:18]} 58. Rxe4+ {[%emt 0:00:02]} fxe4+ {[%emt 0:00:01]} 59. Ke2 {[%emt 0:00:00]} e3 {[%emt 0:00:02]} 60. Ke1 {[%emt 0:00:01]} Ke5 {[%emt 0:00:13]} 61. Ke2 {[%emt 0:00:01]} Ke4 {[%emt 0:00:02]} 62. Ke1 {[%emt 0:00:00]} Kd3 {[%emt 0:00:02]} 63. Kd1 {[%emt 0:00:01]} e2+ {[%emt 0:00:01]} 64. Ke1 {[%emt 0:00:00]} Ke3 {[%emt 0:00:01]} 1/2-1/2

[Event "FIDE Women World Rapid 2024"]
[Site "New York"]
[Date "2024.12.27"]
[Round "7.16"]
[White "Javakhishvili, Lela"]
[Black "Sevcikova, Lucia"]
[Result "1-0"]
[ECO "A07"]
[WhiteElo "2426"]
[BlackElo "2060"]
[Annotator "ChessBase"]
[PlyCount "57"]
[EventDate "2024.12.14"]
[EventType "swiss"]
[EventCountry "USA"]
[SourceTitle "playchess.com"]
[Source "ChessBase"]
[SourceQuality "1"]
[TimeControl "900+10"]

1. Nf3 {[%emt 0:00:02]} d5 {[%emt 0:00:01]} 2. b3 {[%emt 0:00:02]} Nf6 {[%emt 0:00:13]} 3. Bb2 {[%emt 0:00:02]} Bf5 {[%emt 0:00:06]} 4. g3 {[%emt 0:00:08]} c6 {[%emt 0:00:01]} 5. Bg2 {[%emt 0:00:02]} e6 {[%emt 0:00:02]} 6. d3 {[%emt 0:00:04]} h6 {[%emt 0:00:06]} 7. O-O {[%emt 0:00:04]} Be7 {[%emt 0:00:09]} 8. Nbd2 {[%emt 0:00:04]} O-O {[%emt 0:00:14]} 9. Re1 {[%emt 0:00:03]} a5 {[%emt 0:01:30]} 10. e4 {[%emt 0:00:04]} dxe4 {[%emt 0:00:17]} 11. dxe4 {[%emt 0:00:03]} Bh7 {[%emt 0:00:09]} 12. a3 {[%emt 0:00:59]} Na6 {[%emt 0:00:47]} 13. e5 {[%emt 0:00:15]} Nd5 {[%emt 0:00:18]} 14. Nc4 {[%emt 0:01:11]} Qc7 {[%emt 0:01:58]} 15. Nd6 {[%emt 0:00:33]} Rad8 {[%emt 0:00:50]} 16. c4 {[%emt 0:00:02]} Nb6 {[%emt 0:00:04]} 17. Qd4 {[%emt 0:00:13]} c5 {[%emt 0:02:42]} 18. Qc3 {[%emt 0:00:26]} Nc8 {[%emt 0:00:26]} 19. Nd2 {[%emt 0:00:11]} Qb6 {[%emt 0:00:23]} 20. N2e4 {[%emt 0:00:59]} Bxe4 {[%emt 0:00:19]} 21. Nxe4 {[%emt 0:03:18]} Rd7 {[%emt 0:00:11]} 22. Nf6+ {[%emt 0:00:43]} Bxf6 {[%emt 0:01:27]} 23. exf6 {[%emt 0:00:02]} Rfd8 {[%emt 0:02:34]} 24. fxg7 {[%emt 0:00:22]} Ne7 {[%emt 0:00:10]} 25. Qf6 {[%emt 0:01:06]} Ng6 {[%emt 0:00:44]} 26. Be4 {[%emt 0:00:27]} Qxb3 {[%emt 0:00:37]} 27. Bxg6 {[%emt 0:00:12]} fxg6 {[%emt 0:00:21]} 28. Qxe6+ {[%emt 0:00:04]} Rf7 {[%emt 0:00:26]} 29. Qe8+ {[%emt 0:00:11]} 1-0

[Event "FIDE Women World Rapid 2024"]
[Site "New York"]
[Date "2024.12.27"]
[Round "7.16"]
[White "Huang, Qian"]
[Black "Abrahamyan, Tatev"]
[Result "1/2-1/2"]
[ECO "D35"]
[WhiteElo "2370"]
[BlackElo "2304"]
[Annotator "ChessBase"]
[PlyCount "127"]
[EventDate "2024.12.14"]
[EventType "swiss"]
[EventCountry "USA"]
[SourceTitle "playchess.com"]
[Source "ChessBase"]
[SourceQuality "1"]
[TimeControl "900+10"]

1. c4 {[%emt 0:00:03]} e6 {[%emt 0:00:01]} 2. Nc3 {[%emt 0:00:04]} d5 {[%emt 0:00:02]} 3. cxd5 {[%emt 0:00:02]} exd5 {[%emt 0:00:01]} 4. d4 {[%emt 0:00:02]} Nf6 {[%emt 0:00:09]} 5. Bg5 {[%emt 0:00:11]} Be6 {[%emt 0:00:02]} 6. e3 {[%emt 0:00:55]} Nbd7 {[%emt 0:00:02]} 7. Bd3 {[%emt 0:00:27]} c6 {[%emt 0:00:04]} 8. Nge2 {[%emt 0:00:07]} Be7 {[%emt 0:00:10]} 9. h3 {[%emt 0:00:14]} Nh5 {[%emt 0:01:24]} 10. Bxe7 {[%emt 0:00:35]} Qxe7 {[%emt 0:00:02]} 11. g4 {[%emt 0:00:58]} Nhf6 {[%emt 0:00:03]} 12. Qc2 {[%emt 0:00:03]} g6 {[%emt 0:01:28]} 13. O-O-O {[%emt 0:01:26]} O-O-O {[%emt 0:01:25]} 14. Kb1 {[%emt 0:01:25]} Kb8 {[%emt 0:01:17]} 15. f3 {[%emt 0:01:50]} Nb6 {[%emt 0:01:28]} 16. Rhe1 {[%emt 0:00:04]} Ne8 {[%emt 0:00:16]} 17. Nf4 {[%emt 0:01:30]} Bc8 {[%emt 0:01:53]} 18. b3 {[%emt 0:00:50]} h5 {[%emt 0:01:18]} 19. a4 {[%emt 0:00:52]} hxg4 {[%emt 0:00:46]} 20. hxg4 {[%emt 0:00:01]} g5 {[%emt 0:00:26]} 21. Nh5 {[%emt 0:00:27]} Nf6 {[%emt 0:00:13]} 22. a5 {[%emt 0:01:29]} Nxh5 {[%emt 0:00:33]} 23. axb6 {[%emt 0:00:07]} Ng7 {[%emt 0:00:09]} 24. bxa7+ {[%emt 0:00:02]} Kxa7 {[%emt 0:00:03]} 25. Kb2 {[%emt 0:00:43]} Rh3 {[%emt 0:01:28]} 26. e4 {[%emt 0:03:06]} dxe4 {[%emt 0:01:00]} 27. Bxe4 {[%emt 0:00:01]} Qf6 {[%emt 0:01:24]} 28. d5 {[%emt 0:00:36]} cxd5 {[%emt 0:01:06]} 29. Rxd5 {[%emt 0:00:09]} Rxd5 {[%emt 0:00:21]} 30. Bxd5 {[%emt 0:00:02]} Ne6 {[%emt 0:00:32]} 31. Qg2 {[%emt 0:01:19]} Nf4 {[%emt 0:00:16]} 32. Qg1+ {[%emt 0:00:09]} Kb8 {[%emt 0:00:05]} 33. Be4 {[%emt 0:00:11]} Bxg4 {[%emt 0:00:41]} 34. Qc5 {[%emt 0:00:30]} Bc8 {[%emt 0:00:23]} 35. Ra1 {[%emt 0:00:18]} Rh2+ {[%emt 0:00:03]} 36. Kb1 {[%emt 0:00:06]} Rh1+ {[%emt 0:00:01]} 37. Kb2 {[%emt 0:00:01]} Rxa1 {[%emt 0:00:02]} 38. Kxa1 {[%emt 0:00:01]} Ne2 {[%emt 0:00:08]} 39. Kb2 {[%emt 0:00:01]} Qxc3+ {[%emt 0:00:19]} 40. Qxc3 {[%emt 0:00:01]} Nxc3 {[%emt 0:00:00]} 41. Kxc3 {[%emt 0:00:01]} Kc7 {[%emt 0:00:01]} 42. Kd4 {[%emt 0:00:03]} Kd6 {[%emt 0:00:02]} 43. b4 {[%emt 0:00:02]} f5 {[%emt 0:00:03]} 44. Bd5 {[%emt 0:00:11]} b6 {[%emt 0:00:05]} 45. Bc4 {[%emt 0:00:09]} Bb7 {[%emt 0:00:25]} 46. Be2 {[%emt 0:00:01]} Bc6 {[%emt 0:00:14]} 47. b5 {[%emt 0:00:26]} Bd7 {[%emt 0:00:14]} 48. Bd3 {[%emt 0:00:06]} g4 {[%emt 0:00:15]} 49. fxg4 {[%emt 0:00:01]} fxg4 {[%emt 0:00:01]} 50. Bf1 {[%emt 0:00:06]} g3 {[%emt 0:00:05]} 51. Ke3 {[%emt 0:00:11]} Kc5 {[%emt 0:00:07]} 52. Kf3 {[%emt 0:00:01]} Bxb5 {[%emt 0:00:09]} 53. Bh3 {[%emt 0:00:00]} Bc6+ {[%emt 0:00:28]} 54. Kxg3 {[%emt 0:00:03]} Kd4 {[%emt 0:00:23]} 55. Kf2 {[%emt 0:00:05]} b5 {[%emt 0:00:10]} 56. Ke2 {[%emt 0:00:06]} Kc3 {[%emt 0:00:02]} 57. Be6 {[%emt 0:01:02]} b4 {[%emt 0:00:28]} 58. Kd1 {[%emt 0:00:16]} Ba4+ {[%emt 0:00:08]} 59. Kc1 {[%emt 0:00:01]} Bb3 {[%emt 0:00:01]} 60. Bf5 {[%emt 0:00:05]} Bc4 {[%emt 0:00:15]} 61. Bc2 {[%emt 0:00:15]} Bb5 {[%emt 0:00:14]} 62. Bd1 {[%emt 0:00:05]} Bc6 {[%emt 0:00:10]} 63. Bc2 {[%emt 0:00:05]} b3 {[%emt 0:00:08]} 64. Bxb3 {[%emt 0:00:03]} 1/2-1/2

[Event "FIDE Women World Rapid 2024"]
[Site "New York"]
[Date "2024.12.27"]
[Round "7.17"]
[White "Divya Deshmukh"]
[Black "Wagner, Dinara"]
[Result "1/2-1/2"]
[ECO "B52"]
[WhiteElo "2490"]
[BlackElo "2437"]
[Annotator "ChessBase"]
[PlyCount "98"]
[EventDate "2024.12.14"]
[EventType "swiss"]
[EventCountry "USA"]
[SourceTitle "playchess.com"]
[Source "ChessBase"]
[SourceQuality "1"]
[TimeControl "900+10"]

1. e4 {[%emt 0:00:02]} c5 {[%emt 0:00:02]} 2. Nf3 {[%emt 0:00:02]} d6 {[%emt 0:00:00]} 3. Bb5+ {[%emt 0:00:01]} Bd7 {[%emt 0:00:01]} 4. Bxd7+ {[%emt 0:00:02]} Qxd7 {[%emt 0:00:02]} 5. O-O {[%emt 0:00:23]} Nf6 {[%emt 0:00:25]} 6. Qe2 {[%emt 0:00:03]} Nc6 {[%emt 0:00:13]} 7. c3 {[%emt 0:00:53]} e6 {[%emt 0:00:04]} 8. d4 {[%emt 0:00:03]} cxd4 {[%emt 0:00:02]} 9. cxd4 {[%emt 0:00:01]} d5 {[%emt 0:00:00]} 10. e5 {[%emt 0:00:06]} Ne4 {[%emt 0:00:01]} 11. Rd1 {[%emt 0:00:07]} Be7 {[%emt 0:00:22]} 12. Ne1 {[%emt 0:00:14]} h6 {[%emt 0:00:35]} 13. f3 {[%emt 0:00:09]} Ng5 {[%emt 0:00:01]} 14. Nc3 {[%emt 0:00:08]} Nh7 {[%emt 0:01:22]} 15. Be3 {[%emt 0:00:17]} Nf8 {[%emt 0:00:03]} 16. Nd3 {[%emt 0:00:30]} Ng6 {[%emt 0:00:19]} 17. Qf2 {[%emt 0:00:45]} O-O {[%emt 0:00:55]} 18. Qg3 {[%emt 0:00:07]} Nh4 {[%emt 0:00:44]} 19. Qg4 {[%emt 0:01:34]} Nf5 {[%emt 0:00:01]} 20. Bf2 {[%emt 0:00:01]} Rac8 {[%emt 0:00:39]} 21. h4 {[%emt 0:01:21]} Qd8 {[%emt 0:02:39]} 22. h5 {[%emt 0:00:26]} Nb4 {[%emt 0:03:02]} 23. Ne1 {[%emt 0:00:32]} Nc6 {[%emt 0:00:25]} 24. Nd3 {[%emt 0:00:30]} Bg5 {[%emt 0:00:50]} 25. f4 {[%emt 0:00:29]} Be7 {[%emt 0:00:07]} 26. Ne2 {[%emt 0:00:13]} Qb6 {[%emt 0:00:34]} 27. a3 {[%emt 0:02:14]} a5 {[%emt 0:02:16]} 28. Kh1 {[%emt 0:01:30]} f6 {[%emt 0:01:33]} 29. Qh3 {[%emt 0:01:10]} fxe5 {[%emt 0:00:16]} 30. dxe5 {[%emt 0:00:18]} d4 {[%emt 0:00:23]} 31. g4 {[%emt 0:00:41]} Ne3 {[%emt 0:00:01]} 32. Bxe3 {[%emt 0:00:02]} dxe3 {[%emt 0:00:00]} 33. g5 {[%emt 0:00:06]} Rf5 {[%emt 0:00:46]} 34. gxh6 {[%emt 0:00:23]} Nd4 {[%emt 0:00:39]} 35. Qg4 {[%emt 0:02:10]} Rf7 {[%emt 0:00:06]} 36. Rg1 {[%emt 0:00:52]} Rc2 {[%emt 0:00:09]} 37. Rg2 {[%emt 0:00:22]} Nxe2 {[%emt 0:00:47]} 38. Rxe2 {[%emt 0:00:01]} Rxe2 {[%emt 0:00:35]} 39. Qxe2 {[%emt 0:00:02]} gxh6 {[%emt 0:00:15]} 40. Rg1+ {[%emt 0:00:02]} Rg7 {[%emt 0:00:03]} 41. Rxg7+ {[%emt 0:01:32]} Kxg7 {[%emt 0:00:01]} 42. Ne1 {[%emt 0:00:01]} Bc5 {[%emt 0:00:34]} 43. Ng2 {[%emt 0:00:21]} Bd4 {[%emt 0:00:06]} 44. Kh2 {[%emt 0:00:32]} Kf8 {[%emt 0:00:18]} 45. Qc4 {[%emt 0:00:53]} Qxb2 {[%emt 0:00:09]} 46. Qc8+ {[%emt 0:00:05]} Ke7 {[%emt 0:00:03]} 47. Qc7+ {[%emt 0:00:01]} Ke8 {[%emt 0:00:04]} 48. Qc8+ {[%emt 0:00:11]} Ke7 {[%emt 0:00:01]} 49. Qc7+ {[%emt 0:00:05]} Ke8 {[%emt 0:00:07]} 1/2-1/2

[Event "FIDE Women World Rapid 2024"]
[Site "New York"]
[Date "2024.12.27"]
[Round "7.17"]
[White "Mkrtchyan, Mariam"]
[Black "Foisor, Sabina-Francesca"]
[Result "1-0"]
[ECO "D15"]
[WhiteElo "2325"]
[BlackElo "2222"]
[Annotator "ChessBase"]
[PlyCount "117"]
[EventDate "2024.12.14"]
[EventType "swiss"]
[EventCountry "USA"]
[SourceTitle "playchess.com"]
[Source "ChessBase"]
[SourceQuality "1"]
[TimeControl "900+10"]

1. d4 {[%emt 0:00:02]} d5 {[%emt 0:00:08]} 2. c4 {[%emt 0:00:02]} c6 {[%emt 0:00:05]} 3. Nf3 {[%emt 0:00:02]} Nf6 {[%emt 0:00:01]} 4. Nc3 {[%emt 0:00:02]} a6 {[%emt 0:00:01]} 5. a4 {[%emt 0:00:58]} e6 {[%emt 0:00:05]} 6. e3 {[%emt 0:00:02]} a5 {[%emt 0:00:07]} 7. Be2 {[%emt 0:00:19]} Be7 {[%emt 0:00:16]} 8. O-O {[%emt 0:00:04]} O-O {[%emt 0:00:02]} 9. b3 {[%emt 0:00:06]} Na6 {[%emt 0:00:02]} 10. Bb2 {[%emt 0:00:35]} Nb4 {[%emt 0:00:36]} 11. Ne5 {[%emt 0:00:02]} Ne4 {[%emt 0:00:28]} 12. Nxe4 {[%emt 0:01:28]} dxe4 {[%emt 0:00:02]} 13. f3 {[%emt 0:00:01]} f6 {[%emt 0:03:21]} 14. Ng4 {[%emt 0:00:02]} f5 {[%emt 0:00:14]} 15. Nf2 {[%emt 0:00:43]} Bg5 {[%emt 0:00:16]} 16. Qc1 {[%emt 0:03:33]} exf3 {[%emt 0:00:59]} 17. Bxf3 {[%emt 0:00:01]} Qc7 {[%emt 0:00:31]} 18. Qc3 {[%emt 0:00:47]} Bf6 {[%emt 0:00:06]} 19. Rad1 {[%emt 0:01:29]} Re8 {[%emt 0:00:22]} 20. e4 {[%emt 0:02:31]} e5 {[%emt 0:01:21]} 21. d5 {[%emt 0:00:22]} cxd5 {[%emt 0:02:15]} 22. cxd5 {[%emt 0:00:09]} Qxc3 {[%emt 0:00:11]} 23. Bxc3 {[%emt 0:00:02]} Bd7 {[%emt 0:00:37]} 24. Bxb4 {[%emt 0:02:36]} axb4 {[%emt 0:00:01]} 25. exf5 {[%emt 0:00:02]} Bxf5 {[%emt 0:00:23]} 26. Be4 {[%emt 0:00:01]} Bd7 {[%emt 0:00:14]} 27. d6 {[%emt 0:01:24]} Be6 {[%emt 0:01:18]} 28. Bxb7 {[%emt 0:00:00]} Ra5 {[%emt 0:01:25]} 29. Rd3 {[%emt 0:00:00]} Rb8 {[%emt 0:01:15]} 30. Bf3 {[%emt 0:00:34]} Bd8 {[%emt 0:00:18]} 31. Ne4 {[%emt 0:01:26]} Rc8 {[%emt 0:00:12]} 32. Rfd1 {[%emt 0:00:08]} Ra7 {[%emt 0:00:17]} 33. h3 {[%emt 0:00:28]} Rc2 {[%emt 0:00:03]} 34. Kh2 {[%emt 0:00:12]} Rf7 {[%emt 0:00:21]} 35. Bg4 {[%emt 0:00:22]} Bxg4 {[%emt 0:00:22]} 36. hxg4 {[%emt 0:00:00]} Rf4 {[%emt 0:00:01]} 37. R1d2 {[%emt 0:00:27]} Rxd2 {[%emt 0:00:39]} 38. Nxd2 {[%emt 0:00:02]} Rxg4 {[%emt 0:00:01]} 39. Nc4 {[%emt 0:00:13]} Re4 {[%emt 0:01:26]} 40. Rd5 {[%emt 0:00:08]} Kf7 {[%emt 0:00:25]} 41. Rxe5 {[%emt 0:00:03]} Rxe5 {[%emt 0:00:08]} 42. Nxe5+ {[%emt 0:00:01]} Ke6 {[%emt 0:00:01]} 43. Nc4 {[%emt 0:00:13]} Kd5 {[%emt 0:00:08]} 44. a5 {[%emt 0:00:21]} Kc6 {[%emt 0:00:06]} 45. Kg3 {[%emt 0:00:04]} Bf6 {[%emt 0:00:08]} 46. Kf4 {[%emt 0:00:14]} g6 {[%emt 0:00:01]} 47. Ke4 {[%emt 0:00:13]} h5 {[%emt 0:00:14]} 48. a6 {[%emt 0:00:01]} h4 {[%emt 0:00:08]} 49. Ne5+ {[%emt 0:00:25]} Kb6 {[%emt 0:00:03]} 50. Nxg6 {[%emt 0:00:02]} Kxa6 {[%emt 0:00:03]} 51. Kd5 {[%emt 0:00:02]} Kb6 {[%emt 0:00:06]} 52. Nf8 {[%emt 0:00:24]} Kb7 {[%emt 0:00:13]} 53. Ke6 {[%emt 0:00:09]} Bd8 {[%emt 0:00:27]} 54. Kd7 {[%emt 0:00:02]} Ba5 {[%emt 0:00:10]} 55. Ng6 {[%emt 0:00:03]} Kb6 {[%emt 0:00:02]} 56. Nxh4 {[%emt 0:00:10]} Kc5 {[%emt 0:00:01]} 57. Nf5 {[%emt 0:00:01]} Kd5 {[%emt 0:00:03]} 58. Ne3+ {[%emt 0:00:15]} Kd4 {[%emt 0:00:23]} 59. Nc4 {[%emt 0:00:01]} 1-0

[Event "FIDE Women World Rapid 2024"]
[Site "New York"]
[Date "2024.12.27"]
[Round "7.18"]
[White "Krush, Irina"]
[Black "Danielian, Elina"]
[Result "1/2-1/2"]
[ECO "B36"]
[WhiteElo "2378"]
[BlackElo "2398"]
[Annotator "ChessBase"]
[PlyCount "46"]
[EventDate "2024.12.14"]
[EventType "swiss"]
[EventCountry "USA"]
[SourceTitle "playchess.com"]
[Source "ChessBase"]
[SourceQuality "1"]
[TimeControl "900+10"]

1. c4 {[%emt 0:00:02]} c5 {[%emt 0:00:02]} 2. Nf3 {[%emt 0:00:02]} g6 {[%emt 0:00:01]} 3. d4 {[%emt 0:00:04]} cxd4 {[%emt 0:00:09]} 4. Nxd4 {[%emt 0:00:02]} Nf6 {[%emt 0:00:12]} 5. Nc3 {[%emt 0:00:03]} Nc6 {[%emt 0:00:07]} 6. e4 {[%emt 0:00:04]} Nxd4 {[%emt 0:00:02]} 7. Qxd4 {[%emt 0:00:03]} d6 {[%emt 0:00:02]} 8. Be2 {[%emt 0:00:07]} Bg7 {[%emt 0:00:01]} 9. Be3 {[%emt 0:00:06]} O-O {[%emt 0:00:05]} 10. Qd2 {[%emt 0:00:02]} a5 {[%emt 0:00:03]} 11. O-O {[%emt 0:00:19]} a4 {[%emt 0:00:01]} 12. f3 {[%emt 0:01:23]} Qa5 {[%emt 0:00:03]} 13. Rab1 {[%emt 0:00:21]} Be6 {[%emt 0:02:21]} 14. Rfc1 {[%emt 0:00:49]} Rfc8 {[%emt 0:00:31]} 15. b4 {[%emt 0:04:06]} axb3 {[%emt 0:00:02]} 16. axb3 {[%emt 0:00:02]} Qb4 {[%emt 0:01:42]} 17. Nd5 {[%emt 0:02:34]} Nxd5 {[%emt 0:06:04]} 18. cxd5 {[%emt 0:00:03]} Qxd2 {[%emt 0:00:02]} 19. Bxd2 {[%emt 0:00:02]} Bd7 {[%emt 0:00:37]} 20. Rxc8+ {[%emt 0:00:55]} Rxc8 {[%emt 0:00:07]} 21. Rc1 {[%emt 0:00:02]} Rxc1+ {[%emt 0:00:18]} 22. Bxc1 {[%emt 0:00:02]} Bd4+ {[%emt 0:00:37]} 23. Kf1 {[%emt 0:00:01]} f5 {[%emt 0:00:18]} 1/2-1/2